lending/lending_fUSD_20250819
["ID","MTS","AMOUNT","RATE_DAILY","PERIOD"]
[380267322,1755630529265,-991.43,0.00023821,30]
[380267323,1755630529314,-2403.23,0.00023821,30]
[380267324,1755630529366,-457.25,0.00023821,30]
[380267325,1755630529417,-435.28,0.00023821,30]
[380267326,1755630529463,-400.0,0.00023821,30]
[380267327,1755630529509,-600.44,0.00023821,30]
[380267328,1755630529553,-739.64,0.00023821,30]
[380267329,1755630529600,-706.07,0.00023821,30]
[380267330,1755630529645,-400.0,0.00023821,30]
[380267331,1755630529690,-752.31,0.00023821,30]
[380267332,1755630529734,-840.02,0.00023821,30]
[380267333,1755630529780,-2897.61,0.00023821,30]
[380267334,1755630529825,-1691.99,0.00023821,30]
[380267335,1755630529871,-1037.15,0.00023821,30]
[380267336,1755630529917,-1106.8,0.00023821,30]
[380267337,1755630529963,-400.0,0.00023821,30]
[380267338,1755630530010,-400.0,0.00023821,30]
[380267339,1755630530058,-2337.75,0.00023821,30]
[380267340,1755630530105,-634.7,0.00023821,30]
[380267341,1755630530153,-2040.3,0.00023821,30]
[380267342,1755630530200,-544.69500732,0.00023821,30]
[380267343,1755630530246,-1042.17,0.00023821,30]
[380267344,1755630530295,-933.24,0.00023821,30]
[380267345,1755630530349,-774.29,0.00023821,30]
[380267346,1755630530401,-513.97,0.00023821,30]
[380267347,1755630530453,-400.0,0.00023821,30]
[380267348,1755630530499,-3303.11,0.00023821,30]
[380267349,1755630530543,-2536.84,0.00023821,30]
[380267350,1755630530586,-2383.23,0.00023821,30]
[380267351,1755630530631,-3032.63,0.00023821,30]
[380267352,1755630530676,-400.0,0.00023821,30]
[380267353,1755630530723,-400.0,0.00023821,30]
[380267354,1755630530769,-3033.29,0.00023821,30]
[380267355,1755630530820,-1129.12,0.00023821,30]
[380267356,1755630530872,-421.43,0.00023821,30]
[380267357,1755630530920,-1791.81,0.00023821,30]
[380267358,1755630530971,-2573.42,0.00023821,30]
[380267359,1755630531025,-674.85,0.00023821,30]
[380267360,1755630531084,-988.84,0.00023821,30]
[380267361,1755630531143,-2431.24,0.00023821,30]
[380267362,1755630531198,-440.14,0.00023821,30]
[380267363,1755630531255,-925.02,0.00023821,30]
[380267364,1755630531314,-1825.21,0.00023821,30]
[380267365,1755630531386,-2152.71,0.00023821,30]
[380267366,1755630531440,-400.0,0.00023821,30]
[380267367,1755630531496,-691.76,0.00023821,30]
[380267368,1755630531549,-2269.1,0.00023821,30]
[380267369,1755630531603,-1838.62,0.00023821,30]
[380267370,1755630531654,-400.0,0.00023821,30]
[380267371,1755630531705,-445.2,0.00023821,30]
[380267372,1755630531754,-1032.92,0.00023821,30]
[380267373,1755630531804,-400.0,0.00023821,30]
[380267374,1755630531853,-1019.74,0.00023821,30]
[380267375,1755630531902,-400.0,0.00023821,30]
[380267376,1755630531949,-835.03,0.00023821,30]
[380267377,1755630531996,-400.0,0.00023821,30]
[380267378,1755630532049,-2130.51,0.00023821,30]
[380267379,1755630532105,-618.96,0.00023821,30]
[380267380,1755630532168,-609.14,0.00023821,30]
[380267381,1755630532222,-400.0,0.00023821,30]
[380267382,1755630532277,-731.3,0.00023821,30]
[380267383,1755630532333,-400.0,0.00023821,30]
[380267384,1755630532387,-400.0,0.00023821,30]
[380267385,1755630532441,-2286.59,0.00023821,30]
[380267386,1755630532491,-2177.09,0.00023821,30]
[380267387,1755630532804,-1491.89,0.00023821,30]
[380267388,1755630532858,-1639.78,0.00023821,30]
[380267389,1755630532910,-1553.88,0.00023821,30]
[380267390,1755630532960,-2141.31,0.00023821,30]
[380267391,1755630533011,-1445.88,0.00023821,30]
[380267392,1755630533064,-1704.68,0.00023821,30]
[380267393,1755630533117,-400.0,0.00023821,30]
[380267394,1755630533167,-400.0,0.00023821,30]
[380267395,1755630533217,-400.0,0.00023821,30]
[380267396,1755630533267,-824.76,0.00023821,30]
[380267397,1755630533318,-1457.27,0.00023821,30]
[380267398,1755630533370,-521.21,0.00023821,30]
[380267399,1755630533417,-808.44,0.00023821,30]
[380267400,1755630533462,-2318.32,0.00023821,30]
[380267401,1755630533505,-575.21,0.00023821,30]
[380267402,1755630533548,-2610.91,0.00023821,30]
[380267403,1755630533598,-2082.96,0.00023821,30]
[380267404,1755630533645,-400.0,0.00023821,30]
[380267405,1755630533690,-400.0,0.00023821,30]
[380267406,1755630533734,-400.0,0.00023821,30]
[380267407,1755630533779,-400.0,0.00023821,30]
[380267408,1755630533823,-400.0,0.00023821,30]
[380267409,1755630533869,-741.66,0.00023821,30]
[380267410,1755630533914,-1641.49,0.00023821,30]
[380267411,1755630533961,-2230.22,0.00023821,30]
[380267412,1755630534010,-400.0,0.00023821,30]
[380267413,1755630534063,-1614.82,0.00023821,30]
[380267414,1755630534130,-1259.81,0.00023821,30]
[380267415,1755630534192,-601.76,0.00023821,30]
[380267416,1755630534251,-400.0,0.00023821,30]
[380267417,1755630534305,-400.0,0.00023821,30]
[380267418,1755630534368,-1764.26,0.00023821,30]
[380267419,1755630534424,-520.65,0.00023821,30]
[380267420,1755630534474,-807.58,0.00023821,30]
[380267421,1755630534524,-2852.86,0.00023821,30]
[380267422,1755630534573,-2595.97,0.00023821,30]
[380267423,1755630534626,-1250.58,0.00023821,30]
[380267424,1755630534683,-759.93,0.00023821,30]
[380267425,1755630534753,-2576.77,0.00023821,30]
[380267426,1755630534817,-400.0,0.00023821,30]
[380267427,1755630534875,-400.0,0.00023821,30]
[380267428,1755630534927,-2990.03,0.00023821,30]
[380267429,1755630534977,-400.0,0.00023821,30]
[380267430,1755630535031,-969.64,0.00023821,30]
[380267431,1755630535085,-874.65,0.00023821,30]
[380267432,1755630535138,-1990.94,0.00023821,30]
[380267433,1755630535193,-1275.47,0.00023821,30]
[380267434,1755630535249,-400.0,0.00023821,30]
[380267435,1755630535312,-1880.76,0.00023821,30]
[380267436,1755630535369,-403.59,0.00023821,30]
[380267437,1755630535425,-400.0,0.00023821,30]
[380267438,1755630535478,-400.0,0.00023821,30]
[380267439,1755630535527,-2825.31,0.00023821,30]
[380267440,1755630535577,-400.0,0.00023821,30]
[380267441,1755630535625,-1171.85,0.00023821,30]
[380267442,1755630535674,-400.0,0.00023821,30]
[380267443,1755630535722,-1915.83,0.00023821,30]
[380267444,1755630535769,-400.0,0.00023821,30]
[380267445,1755630535816,-1032.99,0.00023821,30]
[380267446,1755630535866,-1115.27,0.00023821,30]
[380267447,1755630535923,-2003.39,0.00023821,30]
[380267448,1755630535973,-400.0,0.00023821,30]
[380267449,1755630536027,-400.0,0.00023821,30]
[380267450,1755630536079,-400.0,0.00023821,30]
[380267451,1755630536133,-773.28,0.00023821,30]
[380267452,1755630536187,-2415.35,0.00023821,30]
[380267453,1755630536242,-400.0,0.00023821,30]
[380267454,1755630536294,-400.0,0.00023821,30]
[380267455,1755630536344,-1093.1,0.00023821,30]
[380267456,1755630536391,-1694.65,0.00023821,30]
[380267457,1755630536438,-727.99,0.00023821,30]
[380267458,1755630536491,-1683.21,0.00023821,30]
[380267459,1755630536549,-3052.27,0.00023821,30]
[380267460,1755630536602,-690.52,0.00023821,30]
[380267461,1755630536649,-2031.05,0.00023821,30]
[380267462,1755630536694,-400.0,0.00023821,30]
[380267463,1755630536739,-721.89,0.00023821,30]
[380267464,1755630536783,-400.0,0.00023821,30]
[380267465,1755630536827,-2545.67,0.00023821,30]
[380267466,1755630536872,-1864.55,0.00023821,30]
[380267467,1755630536915,-400.0,0.00023821,30]
[380267468,1755630536963,-1540.32,0.00023821,30]
[380267469,1755630537011,-933.6,0.00023821,30]
[380267470,1755630537062,-400.0,0.00023821,30]
[380267471,1755630537113,-2194.24,0.00023821,30]
[380267472,1755630537164,-1493.31,0.00023821,30]
[380267473,1755630537214,-667.4,0.00023821,30]
[380267474,1755630537265,-1903.48,0.00023821,30]
[380267475,1755630537316,-5130.58,0.00023821,30]
[380267476,1755630537367,-1549.09,0.00023821,30]
[380267477,1755630537412,-1016.3,0.00023821,30]
[380267478,1755630537456,-400.0,0.00023821,30]
[380267479,1755630537500,-2999.76,0.00023821,30]
[380267480,1755630537544,-1945.59,0.00023821,30]
[380267481,1755630537589,-400.0,0.00023821,30]
[380267482,1755630537637,-1712.23,0.00023821,30]
[380267483,1755630537683,-447.13,0.00023821,30]
[380267484,1755630537731,-400.0,0.00023821,30]
[380267485,1755630537777,-400.0,0.00023821,30]
[380267486,1755630537822,-1237.06,0.00023821,30]
[380267487,1755630537869,-834.9,0.00023821,30]
[380267488,1755630537916,-1543.97,0.00023821,30]
[380267489,1755630537962,-1537.57,0.00023821,30]
[380267490,1755630538011,-1759.02,0.00023821,30]
[380267491,1755630538062,-2463.0,0.00023821,30]
[380267492,1755630538117,-400.0,0.00023821,30]
[380267493,1755630538169,-2651.29,0.00023821,30]
[380267494,1755630538224,-400.0,0.00023821,30]
[380267495,1755630538278,-2296.47,0.00023821,30]
[380267496,1755630538330,-716.49,0.00023821,30]
[380267497,1755630538382,-1180.21,0.00023821,30]
[380267498,1755630538430,-989.74,0.00023821,30]
[380267499,1755630538479,-2445.69,0.00023821,30]
[380267500,1755630538528,-2438.63,0.00023821,30]
[380267501,1755630538572,-2251.53,0.00023821,30]
[380267502,1755630538954,-2228.98,0.00023821,30]
[380267503,1755630539003,-400.0,0.00023821,30]
[380267504,1755630539052,-1000.0,0.00023821,30]
[380267505,1755630539105,-1354.08,0.00023821,30]
[380267506,1755630539154,-632.7,0.00023821,30]
[380267507,1755630539201,-476.92,0.00023821,30]
[380267508,1755630539247,-400.0,0.00023821,30]
[380267509,1755630539294,-2116.49,0.00023821,30]
[380267510,1755630539342,-1944.84,0.00023821,30]
[380267511,1755630539393,-1498.84,0.00023821,30]
[380267512,1755630539442,-641.51,0.00023821,30]
[380267513,1755630539488,-2221.8,0.00023821,30]
[380267514,1755630539535,-400.0,0.00023821,30]
[380267515,1755630539582,-795.25,0.00023821,30]
[380267516,1755630539634,-1067.22,0.00023821,30]
[380267517,1755630539681,-5673.57,0.00023821,30]
[380267518,1755630539725,-1077.46,0.00023821,30]
[380267519,1755630539772,-893.12,0.00023821,30]
[380267520,1755630539821,-400.0,0.00023821,30]
[380267521,1755630539868,-400.0,0.00023821,30]
[380267522,1755630539913,-9783.42,0.00023821,30]
[380267523,1755630539959,-400.0,0.00023821,30]
[380267524,1755630540009,-1557.8,0.00023821,30]
[380267525,1755630540079,-994.07,0.00023821,30]
[380267526,1755630540155,-1869.67,0.00023821,30]
[380267527,1755630540224,-555.34,0.00023821,30]
[380267528,1755630540285,-400.0,0.00023821,30]
[380267529,1755630540347,-919.17,0.00023821,30]
[380267530,1755630540406,-1190.15,0.00023821,30]
[380267531,1755630540465,-400.0,0.00023821,30]
[380267532,1755630540521,-400.0,0.00023821,30]
[380267533,1755630540575,-400.0,0.00023821,30]
[380267534,1755630540628,-1892.75,0.00023821,30]
[380267535,1755630540675,-2088.94,0.00023821,30]
[380267536,1755630540719,-731.12,0.00023821,30]
[380267537,1755630540764,-1711.77,0.00023821,30]
[380267538,1755630540808,-624.5,0.00023821,30]
[380267539,1755630540852,-2888.69,0.00023821,30]
[380267540,1755630540897,-400.0,0.00023821,30]
[380267541,1755630540943,-1019.51,0.00023821,30]
[380267542,1755630540989,-5639.35,0.00023821,30]
[380267543,1755630541039,-400.0,0.00023821,30]
[380267544,1755630541092,-1894.77,0.00023821,30]
[380267545,1755630541145,-400.0,0.00023821,30]
[380267546,1755630541198,-2878.14,0.00023821,30]
[380267547,1755630541250,-477.1,0.00023821,30]
[380267548,1755630541303,-850.07,0.00023821,30]
[380267549,1755630541361,-2507.54,0.00023821,30]
[380267550,1755630541411,-2131.76,0.00023821,30]
[380267551,1755630541458,-1145.45,0.00023821,30]
[380267552,1755630541507,-1865.24,0.00023821,30]
[380267553,1755630541552,-400.0,0.00023821,30]
[380267554,1755630541600,-1645.93,0.00023821,30]
[380267555,1755630541651,-947.97,0.00023821,30]
[380267556,1755630541699,-3262.7,0.00023821,30]
[380267557,1755630541752,-503.59,0.00023821,30]
[380267558,1755630541799,-400.0,0.00023821,30]
[380267559,1755630541847,-2074.6,0.00023821,30]
[380267560,1755630541895,-1910.82950022,0.00023821,30]
[380267563,1755630603990,476.19,0.00021917,120]
[380267564,1755630622367,-400.0,0.00022999,30]
[380267565,1755630622426,-1159.8,0.00022999,30]
[380267566,1755630622484,-400.0,0.00022999,30]
[380267567,1755630622543,-400.0,0.00022999,30]
[380267568,1755630622602,-594.02,0.00022999,30]
[380267569,1755630622662,-2161.34,0.00022999,30]
[380267570,1755630622721,-400.0,0.00022999,30]
[380267571,1755630622778,-785.37,0.00022999,30]
[380267572,1755630622835,-925.07,0.00022999,30]
[380267573,1755630622893,-400.0,0.00022999,30]
[380267574,1755630622951,-1533.15,0.00022999,30]
[380267575,1755630623011,-827.42,0.00022999,30]
[380267576,1755630623072,-1094.8,0.00022999,30]
[380267577,1755630623132,-1481.14,0.00022999,30]
[380267578,1755630623193,-400.0,0.00022999,30]
[380267579,1755630623254,-400.0,0.00022999,30]
[380267580,1755630623318,-400.0,0.00022999,30]
[380267581,1755630623382,-424.97,0.00022999,30]
[380267582,1755630623445,-2049.37,0.00022999,30]
[380267583,1755630623504,-400.0,0.00022999,30]
[380267584,1755630623576,-535.14,0.00022999,30]
[380267585,1755630623644,-2172.05,0.00022999,30]
[380267586,1755630623707,-400.0,0.00022999,30]
[380267587,1755630623768,-400.0,0.00022999,30]
[380267588,1755630623829,-831.55,0.00022999,30]
[380267589,1755630623891,-1532.6,0.00022999,30]
[380267590,1755630623953,-853.09,0.00022999,30]
[380267591,1755630624015,-1512.48,0.00022999,30]
[380267592,1755630624078,-400.0,0.00022999,30]
[380267593,1755630624141,-757.23,0.00022999,30]
[380267594,1755630624203,-400.0,0.00022999,30]
[380267595,1755630624266,-335.08288261,0.00022999,30]
[380267596,1755630624328,-834.74,0.00022999,30]
[380267597,1755630624392,-400.0,0.00022999,30]
[380267598,1755630624462,-528.08,0.00022999,30]
[380267599,1755630624523,-1466.98,0.00022999,30]
[380267600,1755630624586,-1667.74,0.00022999,30]
[380267601,1755630624661,-400.0,0.00022999,30]
[380267602,1755630624724,-851.95,0.00022999,30]
[380267603,1755630624785,-400.0,0.00022999,30]
[380267604,1755630624848,-3654.91,0.00022999,30]
[380267605,1755630624910,-400.0,0.00022999,30]
[380267606,1755630624975,-585.37,0.00022999,30]
[380267607,1755630625036,-400.0,0.00022999,30]
[380267608,1755630625099,-1678.23,0.00022999,30]
[380267609,1755630625166,-500.95,0.00022999,30]
[380267610,1755630625230,-1296.84,0.00022999,30]
[380267611,1755630625293,-400.0,0.00022999,30]
[380267612,1755630625355,-990.17,0.00022999,30]
[380267613,1755630625417,-1498.02,0.00022999,30]
[380267614,1755630625477,-414.92,0.00022999,30]
[380267615,1755630625537,-490.9,0.00022999,30]
[380267616,1755630625598,-1422.74,0.00022999,30]
[380267617,1755630625658,-837.81,0.00022999,30]
[380267618,1755630625722,-1994.78,0.00022999,30]
[380267619,1755630625782,-684.54,0.00022999,30]
[380267620,1755630625842,-400.0,0.00022999,30]
[380267621,1755630625901,-916.66,0.00022999,30]
[380267622,1755630625965,-400.0,0.00022999,30]
[380267623,1755630626028,-5424.17,0.00022999,30]
[380267624,1755630626089,-1483.77,0.00022999,30]
[380267625,1755630626152,-2023.25,0.00022999,30]
[380267626,1755630626217,-400.0,0.00022999,30]
[380267627,1755630626280,-827.87,0.00022999,30]
[380267628,1755630626342,-400.0,0.00022999,30]
[380267629,1755630626403,-1863.32,0.00022999,30]
[380267630,1755630626466,-1962.6,0.00022999,30]
[380267631,1755630626527,-539.12,0.00022999,30]
[380267632,1755630626587,-1489.75,0.00022999,30]
[380267633,1755630626644,-1279.96,0.00022999,30]
[380267634,1755630626704,-804.37,0.00022999,30]
[380267635,1755630626763,-879.44,0.00022999,30]
[380267636,1755630626821,-400.0,0.00022999,30]
[380267637,1755630626878,-400.0,0.00022999,30]
[380267638,1755630626938,-736.46,0.00022999,30]
[380267639,1755630627013,-400.0,0.00022999,30]
[380267640,1755630627075,-540.41,0.00022999,30]
[380267641,1755630627138,-3004.1,0.00022999,30]
[380267642,1755630627200,-903.83,0.00022999,30]
[380267643,1755630627266,-400.0,0.00022999,30]
[380267644,1755630627329,-400.0,0.00022999,30]
[380267645,1755630627393,-452.13,0.00022999,30]
[380267646,1755630627454,-768.98,0.00022999,30]
[380267647,1755630627516,-400.0,0.00022999,30]
[380267648,1755630627576,-1813.68,0.00022999,30]
[380267649,1755630627636,-400.0,0.00022999,30]
[380267650,1755630627694,-400.0,0.00022999,30]
[380267651,1755630627754,-400.0,0.00022999,30]
[380267652,1755630627815,-400.0,0.00022999,30]
[380267653,1755630627871,-2223.82,0.00022999,30]
[380267654,1755630627928,-400.0,0.00022999,30]
[380267655,1755630627988,-400.0,0.00022999,30]
[380267656,1755630628050,-2140.5,0.00022999,30]
[380267657,1755630628112,-2978.0,0.00022999,30]
[380267658,1755630628530,-762.55,0.00022999,30]
[380267659,1755630628591,-1352.34,0.00022999,30]
[380267660,1755630628651,-400.0,0.00022999,30]
[380267661,1755630628711,-2258.26,0.00022999,30]
[380267662,1755630628771,-447.68,0.00022999,30]
[380267663,1755630628830,-400.0,0.00022999,30]
[380267664,1755630628889,-400.0,0.00022999,30]
[380267665,1755630628950,-400.0,0.00022999,30]
[380267666,1755630629011,-400.0,0.00022999,30]
[380267667,1755630629074,-666.94,0.00022999,30]
[380267668,1755630629138,-400.0,0.00022999,30]
[380267669,1755630629202,-400.0,0.00022999,30]
[380267670,1755630629264,-400.0,0.00022999,30]
[380267671,1755630629324,-699.19,0.00022999,30]
[380267672,1755630629385,-786.12,0.00022999,30]
[380267673,1755630629447,-1117.26,0.00022999,30]
[380267675,1755630629510,-1078.83,0.00022999,30]
[380267676,1755630629570,-400.0,0.00022999,30]
[380267677,1755630629632,-451.4,0.00022999,30]
[380267678,1755630629695,-400.0,0.00022999,30]
[380267679,1755630629759,-685.74,0.00022999,30]
[380267680,1755630629818,-1514.98,0.00022999,30]
[380267681,1755630629878,-686.36,0.00022999,30]
[380267682,1755630629940,-783.3,0.00022999,30]
[380267683,1755630630001,-400.0,0.00022999,30]
[380267684,1755630630067,-400.0,0.00022999,30]
[380267685,1755630630128,-400.0,0.00022999,30]
[380267686,1755630630189,-400.0,0.00022999,30]
[380267687,1755630630254,-927.22,0.00022999,30]
[380267688,1755630630317,-3326.57,0.00022999,30]
[380267689,1755630630378,-400.0,0.00022999,30]
[380267690,1755630630440,-858.73,0.00022999,30]
[380267691,1755630630500,-463.57,0.00022999,30]
[380267692,1755630630571,-638.06,0.00022999,30]
[380267693,1755630630641,-1217.67,0.00022999,30]
[380267694,1755630630702,-179.29116232,0.00022999,30]
[380267695,1755630630777,-1055.26,0.00022999,30]
[380267696,1755630630839,-267.78690287,0.00022999,30]
[380267697,1755630630900,-617.22,0.00022999,30]
[380267698,1755630630962,-654.88,0.00022999,30]
[380267699,1755630631027,-927.42,0.00022999,30]
[380267700,1755630631089,-400.0,0.00022999,30]
[380267701,1755630631151,-877.36,0.00022999,30]
[380267702,1755630631212,-1451.41,0.00022999,30]
[380267703,1755630631278,-400.0,0.00022999,30]
[380267704,1755630631341,-774.15,0.00022999,30]
[380267705,1755630631400,-400.0,0.00022999,30]
[380267706,1755630631462,-400.0,0.00022999,30]
[380267707,1755630631523,-755.17,0.00022999,30]
[380267708,1755630631585,-1269.4,0.00022999,30]
[380267709,1755630631649,-850.21,0.00022999,30]
[380267711,1755630631712,-400.0,0.00022999,30]
[380267713,1755630631775,-2050.78,0.00022999,30]
[380267716,1755630631841,-400.0,0.00022999,30]
[380267717,1755630631905,-400.0,0.00022999,30]
[380267720,1755630631969,-1574.07,0.00022999,30]
[380267721,1755630632033,-3252.62,0.00022999,30]
[380267722,1755630632096,-400.0,0.00022999,30]
[380267723,1755630632159,-400.0,0.00022999,30]
[380267724,1755630632223,-893.8,0.00022999,30]
[380267725,1755630632287,-1796.62,0.00022999,30]
[380267726,1755630632350,-2151.13,0.00022999,30]
[380267727,1755630632413,-400.0,0.00022999,30]
[380267728,1755630632475,-400.0,0.00022999,30]
[380267729,1755630632538,-400.0,0.00022999,30]
[380267730,1755630632599,-400.0,0.00022999,30]
[380267731,1755630632660,-400.0,0.00022999,30]
[380267732,1755630632727,-400.0,0.00022999,30]
[380267733,1755630632789,-1524.91,0.00022999,30]
[380267734,1755630632851,-400.0,0.00022999,30]
[380267735,1755630632914,-400.0,0.00022999,30]
[380267736,1755630632982,-400.0,0.00022999,30]
[380267737,1755630633048,-1268.61,0.00022999,30]
[380267738,1755630633116,-400.0,0.00022999,30]
[380267739,1755630633180,-3537.65,0.00022999,30]
[380267740,1755630633246,-400.0,0.00022999,30]
[380267741,1755630633311,-400.0,0.00022999,30]
[380267742,1755630633377,-632.78,0.00022999,30]
[380267743,1755630633441,-400.0,0.00022999,30]
[380267744,1755630633503,-1091.34,0.00022999,30]
[380267745,1755630633565,-400.0,0.00022999,30]
[380267746,1755630633626,-1777.71,0.00022999,30]
[380267747,1755630633692,-1517.91,0.00022999,30]
[380267748,1755630633756,-400.0,0.00022999,30]
[380267749,1755630633822,-449.25,0.00022999,30]
[380267750,1755630633884,-400.0,0.00022999,30]
[380267751,1755630633958,-603.15,0.00022999,30]
[380267752,1755630634022,-1999.87,0.00022999,30]
[380267753,1755630634086,-400.0,0.00022999,30]
[380267754,1755630634151,-737.73,0.00022999,30]
[380267755,1755630634217,-759.41,0.00022999,30]
[380267756,1755630634282,-2887.56,0.00022999,30]
[380267757,1755630634346,-2399.17,0.00022999,30]
[380267758,1755630634421,-400.0,0.00022999,30]
[380267759,1755630634859,-1092.33,0.00022999,30]
[380267760,1755630634925,-400.0,0.00022999,30]
[380267761,1755630634994,-1154.89,0.00022999,30]
[380267762,1755630635060,-400.0,0.00022999,30]
[380267763,1755630635124,-400.0,0.00022999,30]
[380267764,1755630635187,-540.17,0.00022999,30]
[380267765,1755630635251,-400.0,0.00022999,30]
[380267766,1755630635315,-400.0,0.00022999,30]
[380267767,1755630635378,-1604.08,0.00022999,30]
[380267768,1755630635441,-400.0,0.00022999,30]
[380267771,1755630635501,-862.64,0.00022999,30]
[380267772,1755630635562,-426.06,0.00022999,30]
[380267773,1755630635625,-414.72,0.00022999,30]
[380267774,1755630635690,-961.11,0.00022999,30]
[380267775,1755630635751,-558.64,0.00022999,30]
[380267776,1755630635819,-464.91,0.00022999,30]
[380267777,1755630635882,-400.0,0.00022999,30]
[380267778,1755630635943,-996.27,0.00022999,30]
[380267779,1755630636008,-400.0,0.00022999,30]
[380267780,1755630636071,-1174.54,0.00022999,30]
[380267781,1755630636135,-400.0,0.00022999,30]
[380267782,1755630636199,-400.0,0.00022999,30]
[380267783,1755630636263,-400.0,0.00022999,30]
[380267784,1755630636326,-400.0,0.00022999,30]
[380267785,1755630636389,-389.31953263,0.00022999,30]
[380267786,1755630636450,-400.0,0.00022999,30]
[380267787,1755630636511,-529.25,0.00022999,30]
[380267788,1755630636571,-400.0,0.00022999,30]
[380267789,1755630636633,-467.39,0.00022999,30]
[380267790,1755630636693,-1287.79,0.00022999,30]
[380267791,1755630636754,-174.20419307,0.00022999,30]
[380267792,1755630636816,-423.97331016,0.00022999,30]
[380267795,1755630636878,-410.72,0.00022999,30]
[380267802,1755630636939,-400.0,0.00022999,30]
[380267810,1755630637001,-645.33,0.00022999,30]
[380267813,1755630637064,-500.0,0.00022999,30]
[380267814,1755630637126,-500.0,0.00022999,30]
[380267815,1755630637189,-500.0,0.00022999,30]
[380267816,1755630637250,-400.0,0.00022999,30]
[380267817,1755630637313,-500.0,0.00022999,30]
[380267818,1755630637383,-500.0,0.00022999,30]
[380267819,1755630637453,-400.0,0.00022999,30]
[380267820,1755630637512,-212.02104404,0.00023,30]
[380267821,1755630637574,-530.76,0.00023273,30]
[380267822,1755630637636,-400.0,0.00023273,30]
[380267823,1755630637696,-1159.8,0.00023273,30]
[380267824,1755630637756,-548.36726658,0.00023273,30]
[380267827,1755630637814,-400.0,0.00023273,30]
[380267828,1755630637870,-594.02,0.00023273,30]
[380267829,1755630637928,-2161.34,0.00023273,30]
[380267830,1755630637987,-785.37,0.00023273,30]
[380267831,1755630638051,-925.07,0.00023273,30]
[380267832,1755630638123,-400.0,0.00023273,30]
[380267835,1755630638202,-1533.15,0.00023273,30]
[380267840,1755630638266,-827.42,0.00023273,30]
[380267849,1755630638329,-1094.8,0.00023273,30]
[380267858,1755630638392,-1481.14,0.00023273,30]
[380267865,1755630638453,-400.0,0.00023273,30]
[380267873,1755630638512,-400.0,0.00023273,30]
[380267881,1755630638576,-400.0,0.00023273,30]
[380267888,1755630638639,-424.97,0.00023273,30]
[380267896,1755630638700,-2049.37,0.00023273,30]
[380267904,1755630638765,-400.0,0.00023273,30]
[380267912,1755630638828,-535.14,0.00023273,30]
[380267920,1755630638891,-2172.05,0.00023273,30]
[380267928,1755630638953,-400.0,0.00023273,30]
[380267936,1755630639017,-400.0,0.00023273,30]
[380267944,1755630639082,-831.55,0.00023273,30]
[380267952,1755630639150,-1532.6,0.00023273,30]
[380267960,1755630639212,-853.09,0.00023273,30]
[380267967,1755630639272,-1512.48,0.00023273,30]
[380267975,1755630639335,-400.0,0.00023273,30]